Workbook

Sheet menu

Sheet tableauDeBord
B1: ="Récapitulatif des notes du "&LOWER(LEFT(A5,10))&". Avec décision de passage et les compétences atteintes." -> Récapitulatif des notes du semestre 1. Avec décision de passage et les compétences atteintes. | H1: S1 | J1: =COUNTIF(I2:I4,TRUE) -> 0
B2: Compétences | C2: Ressources | D2: Coefficients | E2: Moyennes des ressources | F2: Moyenne de la compétence | H2: C1<8 | I2: =IF(semestre1!E2<8,TRUE,FALSE) -> FALSE | J2: =semestre1!E2 -> 18.5
B3: Traiter des données à des fins décisionnelles | C3: PPP1 | D3: 0.5 | E3: =IFERROR(ROUND(AVERAGEIFS(notes!$A:$A,notes!$C:$C,1,notes!$D:$D,B3,notes!$E:$E,C3),2),"Veuillez renseignez vos notes") -> 9.13 | F3: =IFERROR(ROUND((E3*F9+E4*F10+E5*F11+E6*F12+E7*F13+E8*F14)/SUM(F9:F14),2),"Veuillez renseignez vos notes") -> 18.5 | H3: C2<8 | I3: =IF(semestre1!E9<8,TRUE,FALSE) -> FALSE | J3: =semestre1!E9 -> 11.5
C4: Tableur et reporting | D4: 1.5 | E4: =IFERROR(ROUND(AVERAGEIFS(notes!$A:$A,notes!$C:$C,1,notes!$D:$D,B3,notes!$E:$E,C4),2),"Veuillez renseignez vos notes") -> 18.5 | H4: C3<8 | I4: =IF(semestre1!E15<8,TRUE,FALSE) -> FALSE | J4: =semestre1!E15 -> 12.7
A5: Semestre 1 -------------> | C5: Base de données relationnelle 1 | D5: 2 | E5: =IFERROR(ROUND(AVERAGEIFS(notes!$A:$A,notes!$C:$C,1,notes!$D:$D,B3,notes!$E:$E,C5),2),"Veuillez renseignez vos notes") -> 10
C6: Base de la programmation 1 | D6: 2 | E6: =IFERROR(ROUND(AVERAGEIFS(notes!$A:$A,notes!$C:$C,1,notes!$D:$D,B3,notes!$E:$E,C6),2),"Veuillez renseignez vos notes") -> 14.75 | H6: S2 | J6: =COUNTIF(I7:I9,TRUE) -> 1 | K6: =J1+J6 -> 1
C7: SAE - Création d'un reporting | D7: 2 | E7: =IFERROR(ROUND(AVERAGEIFS(notes!$A:$A,notes!$C:$C,1,notes!$D:$D,B3,notes!$E:$E,C7),2),"Veuillez renseignez vos notes") -> 6 | H7: C1<8 | I7: =IF(semestre2!E2<8,TRUE,FALSE) -> FALSE | J7: =semestre2!E2 -> 10.11
C8: SAE - Gestion de fichiers | D8: 2 | E8: =IFERROR(ROUND(AVERAGEIFS(notes!$A:$A,notes!$C:$C,1,notes!$D:$D,B3,notes!$E:$E,C8),2),"Veuillez renseignez vos notes") -> 8.25 | H8: C2<8 | I8: =IF(semestre2!E11<8,TRUE,FALSE) -> TRUE | J8: =semestre2!E11 -> 7.45
H9: C3<8 | I9: =IF(semestre2!E21<8,TRUE,FALSE) -> FALSE | J9: =semestre2!E21 -> 14.46
B10: Analyser statistiquement les données | C10: PPP1 | D10: 0.5 | E10: =IFERROR(ROUND(AVERAGEIFS(notes!$A:$A,notes!$C:$C,1,notes!$D:$D,B10,notes!$E:$E,C10),2),"Veuillez renseignez vos notes") -> 15 | F10: =IFERROR(ROUND((E10*D10+E11*D11+E12*D12+E13*D13+E14*D14)/SUM(D10:D14),2),"Veuillez renseignez vos notes") -> 11.5 | H10: Semestre 1 - Compétences validées
C11: Statistique Descriptive 1 | D11: 2 | E11: =IFERROR(ROUND(AVERAGEIFS(notes!$A:$A,notes!$C:$C,1,notes!$D:$D,B10,notes!$E:$E,C11),2),"Veuillez renseignez vos notes") -> 16.5 | H11: Compétence 1 | I11: =IF(I2=FALSE,"Niveau 1 validée","Niveau 1 non validée") -> Niveau 1 validée
C12: Probabilités 1 | D12: 1.5 | E12: =IFERROR(ROUND(AVERAGEIFS(notes!$A:$A,notes!$C:$C,1,notes!$D:$D,B10,notes!$E:$E,C12),2),"Veuillez renseignez vos notes") -> 14 | H12: Compétence 2 | I12: =IF(I3=FALSE,"Niveau 1 validée","Niveau 1 non validée") -> Niveau 1 validée
C13: Mathématiques 1 | D13: 2 | E13: =IFERROR(ROUND(AVERAGEIFS(notes!$A:$A,notes!$C:$C,1,notes!$D:$D,B10,notes!$E:$E,C13),2),"Veuillez renseignez vos notes") -> 14.75 | H13: Compétence 3 | I13: =IF(I4=FALSE,"Niveau 1 validée","Niveau 1 non validée") -> Niveau 1 validée
C14: SAE - Mise en œuvre de l'enquête et exploitation statistique des réponses | D14: 4 | E14: =IFERROR(ROUND(AVERAGEIFS(notes!$A:$A,notes!$C:$C,1,notes!$D:$D,B10,notes!$E:$E,C14),2),"Veuillez renseignez vos notes") -> 6
H15: Semestre 2 - Compétences validées
B16: Valoriser une production dans un contexte professionnel | C16: PPP1 | D16: 0.5 | E16: =IFERROR(ROUND(AVERAGEIFS(notes!$A:$A,notes!$C:$C,1,notes!$D:$D,B16,notes!$E:$E,C16),2),"Veuillez renseignez vos notes") -> 14.5 | F16: =IFERROR(ROUND((E16*D16+E17*D17+E18*D18+E19*D19+E20*D20+E21*D21)/SUM(D16:D21),2),"Veuillez renseignez vos notes") -> 12.7 | H16: Compétence 1 | I16: =IF(I7=FALSE,"Niveau 2 validée","Niveau 2 non validée") -> Niveau 2 validée
C17: Initiation à l'anglais de spécialité | D17: 1.5 | E17: =IFERROR(ROUND(AVERAGEIFS(notes!$A:$A,notes!$C:$C,1,notes!$D:$D,B16,notes!$E:$E,C17),2),"Veuillez renseignez vos notes") -> 11 | H17: Compétence 2 | I17: =IF(I8=FALSE,"Niveau 2 validée","Niveau 2 non validée") -> Niveau 2 non validée
C18: Base de la communication professionnelle | D18: 1.5 | E18: =IFERROR(ROUND(AVERAGEIFS(notes!$A:$A,notes!$C:$C,1,notes!$D:$D,B16,notes!$E:$E,C18),2),"Veuillez renseignez vos notes") -> 19 | H18: Compétence 3 | I18: =IF(I9=FALSE,"Niveau 2 validée","Niveau 2 non validée") -> Niveau 2 validée
C19: Découverte des données de l'environnement entrepreneurial et économique | D19: 2.5 | E19: =IFERROR(ROUND(AVERAGEIFS(notes!$A:$A,notes!$C:$C,1,notes!$D:$D,B16,notes!$E:$E,C19),2),"Veuillez renseignez vos notes") -> 9.5
C20: SAE - Analyse des données d'un bassin d'emploi | D20: 2 | E20: =IFERROR(ROUND(AVERAGEIFS(notes!$A:$A,notes!$C:$C,1,notes!$D:$D,B16,notes!$E:$E,C20),2),"Veuillez renseignez vos notes") -> 12
C21: SAE - Présentation d'un territoire économique et culturel | D21: 2 | E21: =IFERROR(ROUND(AVERAGEIFS(notes!$A:$A,notes!$C:$C,1,notes!$D:$D,B16,notes!$E:$E,C21),2),"Veuillez renseignez vos notes") -> 13.5
A30: Décision du jury :
A31: ="Vous "&IF(K6>0,"ne passez pas","passez")&" en deuxième année." -> Vous ne passez pas en deuxième année.
A33: Semestre 1 :
A34: ="Vous "&IF(J1>0,"ne passez pas","passez")&" votre semestre 1 avec "&ROUND(AVERAGE(J2:J4),2)&" de moyenne sur le S1" -> Vous passez votre semestre 1 avec 14,23 de moyenne sur le S1
A36: Semestre 2 :
A37: ="Vous "&IF(J6>0,"ne passez pas","passez")&" votre semestre 2 avec "&ROUND(AVERAGE(J7:J9),2)&" de moyenne sur le S2" -> Vous ne passez pas votre semestre 2 avec 10,67 de moyenne sur le S2

Sheet semestre1 (hidden)
A1: Compétences | B1: Ressources | C1: Coefficients | D1: Moyennes des ressources | E1: Moyenne de la compétence
A2: Traiter des données à des fins décisionnelles | B2: PPP1 | C2: 0.5 | D2: =IFERROR(ROUND(AVERAGEIFS(notes!$A:$A,notes!$C:$C,1,notes!$D:$D,A2,notes!$E:$E,B2),2),"Veuillez renseignez vos notes") -> 9.13 | E2: =IFERROR(ROUND((D2*E8+D3*E9+D4*E10+D5*E11+D6*E12+D7*E13)/SUM(E8:E13),2),"Veuillez renseignez vos notes") -> 18.5
B3: Tableur et reporting | C3: 1.5 | D3: =IFERROR(ROUND(AVERAGEIFS(notes!$A:$A,notes!$C:$C,1,notes!$D:$D,A2,notes!$E:$E,B3),2),"Veuillez renseignez vos notes") -> 18.5
B4: Base de données relationnelle 1 | C4: 2 | D4: =IFERROR(ROUND(AVERAGEIFS(notes!$A:$A,notes!$C:$C,1,notes!$D:$D,A2,notes!$E:$E,B4),2),"Veuillez renseignez vos notes") -> 10
B5: Base de la programmation 1 | C5: 2 | D5: =IFERROR(ROUND(AVERAGEIFS(notes!$A:$A,notes!$C:$C,1,notes!$D:$D,A2,notes!$E:$E,B5),2),"Veuillez renseignez vos notes") -> 14.75
B6: SAE - Création d'un reporting | C6: 2 | D6: =IFERROR(ROUND(AVERAGEIFS(notes!$A:$A,notes!$C:$C,1,notes!$D:$D,A2,notes!$E:$E,B6),2),"Veuillez renseignez vos notes") -> 6
B7: SAE - Gestion de fichiers | C7: 2 | D7: =IFERROR(ROUND(AVERAGEIFS(notes!$A:$A,notes!$C:$C,1,notes!$D:$D,A2,notes!$E:$E,B7),2),"Veuillez renseignez vos notes") -> 8.25
A9: Analyser statistiquement les données | B9: PPP1 | C9: 0.5 | D9: =IFERROR(ROUND(AVERAGEIFS(notes!$A:$A,notes!$C:$C,1,notes!$D:$D,A9,notes!$E:$E,B9),2),"Veuillez renseignez vos notes") -> 15 | E9: =IFERROR(ROUND((D9*C9+D10*C10+D11*C11+D12*C12+D13*C13)/SUM(C9:C13),2),"Veuillez renseignez vos notes") -> 11.5
B10: Statistique Descriptive 1 | C10: 2 | D10: =IFERROR(ROUND(AVERAGEIFS(notes!$A:$A,notes!$C:$C,1,notes!$D:$D,A9,notes!$E:$E,B10),2),"Veuillez renseignez vos notes") -> 16.5
B11: Probabilités 1 | C11: 1.5 | D11: =IFERROR(ROUND(AVERAGEIFS(notes!$A:$A,notes!$C:$C,1,notes!$D:$D,A9,notes!$E:$E,B11),2),"Veuillez renseignez vos notes") -> 14
B12: Mathématiques 1 | C12: 2 | D12: =IFERROR(ROUND(AVERAGEIFS(notes!$A:$A,notes!$C:$C,1,notes!$D:$D,A9,notes!$E:$E,B12),2),"Veuillez renseignez vos notes") -> 14.75
B13: SAE - Mise en œuvre de l'enquête et exploitation statistique des réponses | C13: 4 | D13: =IFERROR(ROUND(AVERAGEIFS(notes!$A:$A,notes!$C:$C,1,notes!$D:$D,A9,notes!$E:$E,B13),2),"Veuillez renseignez vos notes") -> 6
A15: Valoriser une production dans un contexte professionnel | B15: PPP1 | C15: 0.5 | D15: =IFERROR(ROUND(AVERAGEIFS(notes!$A:$A,notes!$C:$C,1,notes!$D:$D,A15,notes!$E:$E,B15),2),"Veuillez renseignez vos notes") -> 14.5 | E15: =IFERROR(ROUND((D15*C15+D16*C16+D17*C17+D18*C18+D19*C19+D20*C20)/SUM(C15:C20),2),"Veuillez renseignez vos notes") -> 12.7
B16: Initiation à l'anglais de spécialité | C16: 1.5 | D16: =IFERROR(ROUND(AVERAGEIFS(notes!$A:$A,notes!$C:$C,1,notes!$D:$D,A15,notes!$E:$E,B16),2),"Veuillez renseignez vos notes") -> 11
B17: Base de la communication professionnelle | C17: 1.5 | D17: =IFERROR(ROUND(AVERAGEIFS(notes!$A:$A,notes!$C:$C,1,notes!$D:$D,A15,notes!$E:$E,B17),2),"Veuillez renseignez vos notes") -> 19
B18: Découverte des données de l'environnement entrepreneurial et économique | C18: 2.5 | D18: =IFERROR(ROUND(AVERAGEIFS(notes!$A:$A,notes!$C:$C,1,notes!$D:$D,A15,notes!$E:$E,B18),2),"Veuillez renseignez vos notes") -> 9.5
B19: SAE - Analyse des données d'un bassin d'emploi | C19: 2 | D19: =IFERROR(ROUND(AVERAGEIFS(notes!$A:$A,notes!$C:$C,1,notes!$D:$D,A15,notes!$E:$E,B19),2),"Veuillez renseignez vos notes") -> 12
B20: SAE - Présentation d'un territoire économique et culturel | C20: 2 | D20: =IFERROR(ROUND(AVERAGEIFS(notes!$A:$A,notes!$C:$C,1,notes!$D:$D,A15,notes!$E:$E,B20),2),"Veuillez renseignez vos notes") -> 13.5

Sheet semestre2 (hidden)
A1: Compétences | B1: Ressources | C1: Coefficients | D1: Moyennes des ressources | E1: Moyenne de la compétence
A2: Traiter des données à des fins décisionnelles | B2: PPP2 | C2: 0.5 | D2: =IFERROR(ROUND(AVERAGEIFS(notes!$A:$A,notes!$C:$C,2,notes!$D:$D,A2,notes!$E:$E,B2),2),"Veuillez renseignez vos notes") -> 8 | E2: =IFERROR(ROUND((D2*C2+D3*C3+D4*C4+D5*C5+D6*C6+D7*C7+D8*C8+D9*C9)/SUM(C2:C9),2),"Veuillez renseignez vos notes") -> 10.11
B3: Base de données relationnelle 2 | C3: 1.5 | D3: =IFERROR(ROUND(AVERAGEIFS(notes!$A:$A,notes!$C:$C,2,notes!$D:$D,A2,notes!$E:$E,B3),2),"Veuillez renseignez vos notes") -> 4.5
B4: Bases de la programmation 2 | C4: 1.5 | D4: =IFERROR(ROUND(AVERAGEIFS(notes!$A:$A,notes!$C:$C,2,notes!$D:$D,A2,notes!$E:$E,B4),2),"Veuillez renseignez vos notes") -> 18
B5: Programmation statistique | C5: 1.5 | D5: =IFERROR(ROUND(AVERAGEIFS(notes!$A:$A,notes!$C:$C,2,notes!$D:$D,A2,notes!$E:$E,B5),2),"Veuillez renseignez vos notes") -> 11.75
B6: Reporting et datavisualisation | C6: 1 | D6: =IFERROR(ROUND(AVERAGEIFS(notes!$A:$A,notes!$C:$C,2,notes!$D:$D,A2,notes!$E:$E,B6),2),"Veuillez renseignez vos notes") -> 16
B7: SAE - Analyse de données, reporting et datavisualisation | C7: 2 | D7: =IFERROR(ROUND(AVERAGEIFS(notes!$A:$A,notes!$C:$C,2,notes!$D:$D,A2,notes!$E:$E,B7),2),"Veuillez renseignez vos notes") -> 7.5
B8: SAE - Conception et implémentation d'une base de données | C8: 1.5 | D8: =IFERROR(ROUND(AVERAGEIFS(notes!$A:$A,notes!$C:$C,2,notes!$D:$D,A2,notes!$E:$E,B8),2),"Veuillez renseignez vos notes") -> 5
B9: SAE - Portfolio | C9: 0.5 | D9: =IFERROR(ROUND(AVERAGEIFS(notes!$A:$A,notes!$C:$C,2,notes!$D:$D,A2,notes!$E:$E,B9),2),"Veuillez renseignez vos notes") -> 14.5
A11: Analyser statistiquement les données | B11: PPP2 | C11: 0.5 | D11: =IFERROR(ROUND(AVERAGEIFS(notes!$A:$A,notes!$C:$C,2,notes!$D:$D,A11,notes!$E:$E,B11),2),"Veuillez renseignez vos notes") -> 0 | E11: =IFERROR(ROUND((D11*C11+D12*C12+D13*C13+D14*C14+D15*C15+D16*C16+D17*C17+D18*C18+D19*C19)/SUM(C11:C19),2),"Veuillez renseignez vos notes") -> 7.45
B12: Statistique descriptive 2 | C12: 1 | D12: =IFERROR(ROUND(AVERAGEIFS(notes!$A:$A,notes!$C:$C,2,notes!$D:$D,A11,notes!$E:$E,B12),2),"Veuillez renseignez vos notes") -> 11
B13: Statistique inférentielle | C13: 1.5 | D13: =IFERROR(ROUND(AVERAGEIFS(notes!$A:$A,notes!$C:$C,2,notes!$D:$D,A11,notes!$E:$E,B13),2),"Veuillez renseignez vos notes") -> 18
B14: Probabilités 2 | C14: 1.5 | D14: =IFERROR(ROUND(AVERAGEIFS(notes!$A:$A,notes!$C:$C,2,notes!$D:$D,A11,notes!$E:$E,B14),2),"Veuillez renseignez vos notes") -> 8.5
B15: Mathématiques 2 | C15: 1 | D15: =IFERROR(ROUND(AVERAGEIFS(notes!$A:$A,notes!$C:$C,2,notes!$D:$D,A11,notes!$E:$E,B15),2),"Veuillez renseignez vos notes") -> 14.75
B16: SAE - Analyse de données, reporting et datavisualisation | C16: 2 | D16: =IFERROR(ROUND(AVERAGEIFS(notes!$A:$A,notes!$C:$C,2,notes!$D:$D,A11,notes!$E:$E,B16),2),"Veuillez renseignez vos notes") -> 0
B17: SAE - Estimation par sondage | C17: 1 | D17: =IFERROR(ROUND(AVERAGEIFS(notes!$A:$A,notes!$C:$C,2,notes!$D:$D,A11,notes!$E:$E,B17),2),"Veuillez renseignez vos notes") -> 9
B18: SAE - Régression sur des données réelles | C18: 1 | D18: =IFERROR(ROUND(AVERAGEIFS(notes!$A:$A,notes!$C:$C,2,notes!$D:$D,A11,notes!$E:$E,B18),2),"Veuillez renseignez vos notes") -> 0
B19: SAE - Portfolio | C19: 0.5 | D19: =IFERROR(ROUND(AVERAGEIFS(notes!$A:$A,notes!$C:$C,2,notes!$D:$D,A11,notes!$E:$E,B19),2),"Veuillez renseignez vos notes") -> 0
A21: Valoriser une production dans un contexte professionnel | B21: PPP2 | C21: 0.5 | D21: =IFERROR(ROUND(AVERAGEIFS(notes!$A:$A,notes!$C:$C,2,notes!$D:$D,A21,notes!$E:$E,B21),2),"Veuillez renseignez vos notes") -> 8.5 | E21: =IFERROR(ROUND((D21*C21+D22*C22+D23*C23+D24*C24+D25*C25+D26*C26+D27*C27+D28*C28)/SUM(C21:C28),2),"Veuillez renseignez vos notes") -> 14.46
B22: Approfondissement de l'anglais de spécialité | C22: 1.5 | D22: =IFERROR(ROUND(AVERAGEIFS(notes!$A:$A,notes!$C:$C,2,notes!$D:$D,A21,notes!$E:$E,B22),2),"Veuillez renseignez vos notes") -> 18.5
B23: Communication, sémiologie et argumentation | C23: 1.5 | D23: =IFERROR(ROUND(AVERAGEIFS(notes!$A:$A,notes!$C:$C,2,notes!$D:$D,A21,notes!$E:$E,B23),2),"Veuillez renseignez vos notes") -> 10
B24: Etude des données de l'environnement entrepreneurial et économique | C24: 2 | D24: =IFERROR(ROUND(AVERAGEIFS(notes!$A:$A,notes!$C:$C,2,notes!$D:$D,A21,notes!$E:$E,B24),2),"Veuillez renseignez vos notes") -> 14.75
B25: SAE - Analyse de données, reporting et datavisualisation | C25: 2 | D25: =IFERROR(ROUND(AVERAGEIFS(notes!$A:$A,notes!$C:$C,2,notes!$D:$D,A21,notes!$E:$E,B25),2),"Veuillez renseignez vos notes") -> 16.5
B26: SAE - Construction et présentation d’indicateurs de performance | C26: 1 | D26: =IFERROR(ROUND(AVERAGEIFS(notes!$A:$A,notes!$C:$C,2,notes!$D:$D,A21,notes!$E:$E,B26),2),"Veuillez renseignez vos notes") -> 17.5
B27: SAE - Dataviz | C27: 1 | D27: =IFERROR(ROUND(AVERAGEIFS(notes!$A:$A,notes!$C:$C,2,notes!$D:$D,A21,notes!$E:$E,B27),2),"Veuillez renseignez vos notes") -> 12
B28: SAE - Portfolio | C28: 0.5 | D28: =IFERROR(ROUND(AVERAGEIFS(notes!$A:$A,notes!$C:$C,2,notes!$D:$D,A21,notes!$E:$E,B28),2),"Veuillez renseignez vos notes") -> 11.25

Sheet notes (hidden)
A1: note | B1: coefficient | C1: semestre | D1: compétence | E1: ressource
A2: 8.5 | B2: 1 | C2: 1 | D2: Traiter des données à des fins décisionnelles | E2: PPP1
A3: 18.5 | B3: 1 | C3: 1 | D3: Traiter des données à des fins décisionnelles | E3: Tableur et reporting
A4: 10 | B4: 1 | C4: 1 | D4: Traiter des données à des fins décisionnelles | E4: Base de données relationnelle 1
A5: 14.75 | B5: 1 | C5: 1 | D5: Traiter des données à des fins décisionnelles | E5: Base de la programmation 1
A6: 6 | B6: 1 | C6: 1 | D6: Traiter des données à des fins décisionnelles | E6: SAE - Création d'un reporting
A7: 8.25 | B7: 1 | C7: 1 | D7: Traiter des données à des fins décisionnelles | E7: SAE - Gestion de fichiers
A8: 15 | B8: 1 | C8: 1 | D8: Analyser statistiquement les données | E8: PPP1
A9: 16.5 | B9: 1 | C9: 1 | D9: Analyser statistiquement les données | E9: Statistique Descriptive 1
A10: 18 | B10: 1 | C10: 1 | D10: Analyser statistiquement les données | E10: Probabilités 1
A11: 14.75 | B11: 1 | C11: 1 | D11: Analyser statistiquement les données | E11: Mathématiques 1
A12: 6 | B12: 3 | C12: 1 | D12: Analyser statistiquement les données | E12: SAE - Mise en œuvre de l'enquête et exploitation statistique des réponses
A13: 14.5 | B13: 1 | C13: 1 | D13: Valoriser une production dans un contexte professionnel | E13: PPP1
A14: 11 | B14: 1 | C14: 1 | D14: Valoriser une production dans un contexte professionnel | E14: Initiation à l'anglais de spécialité
A15: 19 | B15: 1 | C15: 1 | D15: Valoriser une production dans un contexte professionnel | E15: Base de la communication professionnelle
A16: 9.5 | B16: 1 | C16: 1 | D16: Valoriser une production dans un contexte professionnel | E16: Découverte des données de l'environnement entrepreneurial et économique
A17: 12 | B17: 1 | C17: 1 | D17: Valoriser une production dans un contexte professionnel | E17: SAE - Analyse des données d'un bassin d'emploi
A18: 13.5 | B18: 1 | C18: 1 | D18: Valoriser une production dans un contexte professionnel | E18: SAE - Présentation d'un territoire économique et culturel
A19: 8 | B19: 1 | C19: 2 | D19: Traiter des données à des fins décisionnelles | E19: PPP2
A20: 4.5 | B20: 1 | C20: 2 | D20: Traiter des données à des fins décisionnelles | E20: Base de données relationnelle 2
A21: 18 | B21: 1 | C21: 2 | D21: Traiter des données à des fins décisionnelles | E21: Bases de la programmation 2
A22: 11.75 | B22: 1 | C22: 2 | D22: Traiter des données à des fins décisionnelles | E22: Programmation statistique
A23: 16 | B23: 1 | C23: 2 | D23: Traiter des données à des fins décisionnelles | E23: Reporting et datavisualisation
A24: 7.5 | B24: 1 | C24: 2 | D24: Traiter des données à des fins décisionnelles | E24: SAE - Analyse de données, reporting et datavisualisation
A25: 5 | B25: 1 | C25: 2 | D25: Traiter des données à des fins décisionnelles | E25: SAE - Conception et implémentation d'une base de données
A26: 14.5 | B26: 1 | C26: 2 | D26: Traiter des données à des fins décisionnelles | E26: SAE - Portfolio
A27: 0 | B27: 1 | C27: 2 | D27: Analyser statistiquement les données | E27: PPP2
A28: 11 | B28: 1 | C28: 2 | D28: Analyser statistiquement les données | E28: Statistique descriptive 2
A29: 18 | B29: 1 | C29: 2 | D29: Analyser statistiquement les données | E29: Statistique inférentielle
A30: 8.5 | B30: 1 | C30: 2 | D30: Analyser statistiquement les données | E30: Probabilités 2
A31: 14.75 | B31: 1 | C31: 2 | D31: Analyser statistiquement les données | E31: Mathématiques 2
A32: 0 | B32: 1 | C32: 2 | D32: Analyser statistiquement les données | E32: SAE - Analyse de données, reporting et datavisualisation
A33: 0 | B33: 1 | C33: 2 | D33: Analyser statistiquement les données | E33: SAE - Construction et présentation d’indicateurs de performance
A34: 0 | B34: 1 | C34: 2 | D34: Analyser statistiquement les données | E34: SAE - Régression sur des données réelles
A35: 0 | B35: 1 | C35: 2 | D35: Analyser statistiquement les données | E35: SAE - Portfolio
A36: 8.5 | B36: 1 | C36: 2 | D36: Valoriser une production dans un contexte professionnel | E36: PPP2
A37: 18.5 | B37: 1 | C37: 2 | D37: Valoriser une production dans un contexte professionnel | E37: Approfondissement de l'anglais de spécialité
A38: 10 | B38: 1 | C38: 2 | D38: Valoriser une production dans un contexte professionnel | E38: Communication, sémiologie et argumentation
A39: 14.75 | B39: 1 | C39: 2 | D39: Valoriser une production dans un contexte professionnel | E39: Etude des données de l'environnement entrepreneurial et économique
A40: 16.5 | B40: 1 | C40: 2 | D40: Valoriser une production dans un contexte professionnel | E40: SAE - Analyse de données, reporting et datavisualisation
A41: 17.5 | B41: 1 | C41: 2 | D41: Valoriser une production dans un contexte professionnel | E41: SAE - Construction et présentation d’indicateurs de performance
A42: 12 | B42: 1 | C42: 2 | D42: Valoriser une production dans un contexte professionnel | E42: SAE - Dataviz
A43: 11.25 | B43: 1 | C43: 2 | D43: Valoriser une production dans un contexte professionnel | E43: SAE - Portfolio
A44: 9 | B44: 1 | C44: 2 | D44: Analyser statistiquement les données | E44: SAE - Estimation par sondage
A45: 9.75 | B45: 2 | C45: 1 | D45: Traiter des données à des fins décisionnelles | E45: PPP1
A46: 10 | B46: 1.5 | C46: 1 | D46: Analyser statistiquement les données | E46: Probabilités 1
A47: 15 | B47: 3 | C47: 2 | D47: Valoriser une production dans un contexte professionnel | E47: Découverte des données de l'environnement entrepreneurial et économique

Sheet competences_ressources (hidden)
A1: Compétences | C1: Semestre 1 | J1: Semestre 2
A2: Traiter des données à des fins décisionnelles | C2: Compétence 1 | E2: Compétence 2 | G2: Compétence 3 | J2: Compétence 1 | L2: Compétence 2 | N2: Compétence 3
A3: Analyser statistiquement les données | C3: Ressources | D3: Coefficient | E3: Ressources | F3: Coefficient | G3: Ressources | H3: Coefficient | J3: Ressources | K3: Coefficient | L3: Ressources | M3: Coefficient | N3: Ressources | O3: Coefficient
A4: Valoriser une production dans un contexte professionnel | C4: PPP1 | E4: PPP1 | G4: PPP1 | J4: PPP2 | L4: PPP2 | N4: PPP2
C5: Tableur et reporting | E5: Statistique Descriptive 1 | G5: Initiation à l'anglais de spécialité | J5: Base de données relationnelle 2 | L5: Statistique descriptive 2 | N5: Approfondissement de l'anglais de spécialité
C6: Base de données relationnelle 1 | E6: Probabilités 1 | G6: Base de la communication professionnelle | J6: Bases de la programmation 2 | L6: Statistique inférentielle | N6: Communication, sémiologie et argumentation
C7: Base de la programmation 1 | E7: Mathématiques 1 | G7: Découverte des données de l'environnement entrepreneurial et économique | J7: Programmation statistique | L7: Probabilités 2 | N7: Etude des données de l'environnement entrepreneurial et économique
C8: SAE - Création d'un reporting | E8: SAE - Mise en œuvre de l'enquête et exploitation statistique des réponses | G8: SAE - Analyse des données d'un bassin d'emploi | J8: Reporting et datavisualisation | L8: Mathématiques 2 | N8: SAE - Analyse de données, reporting et datavisualisation
C9: SAE - Gestion de fichiers | G9: SAE - Présentation d'un territoire économique et culturel | J9: SAE - Analyse de données, reporting et datavisualisation | L9: SAE - Analyse de données, reporting et datavisualisation | N9: SAE - Construction et présentation d’indicateurs de performance
J10: SAE - Conception et implémentation d'une base de données | L10: SAE - Estimation par sondage | N10: SAE - Dataviz
J11: SAE - Portfolio | L11: SAE - Régression sur des données réelles | N11: SAE - Portfolio
L12: SAE - Portfolio
